fUST/lending_fUST_20250101
["ID","MTS","AMOUNT","RATE_DAILY","PERIOD"]
[347378453,1735746648491,-500.0,0.00019178,2]
[347378454,1735746648501,-500.0,0.00019178,2]
[347378455,1735746648511,-979.04,0.00019178,2]
[347378456,1735746648520,-385.63361901,0.00019178,2]
[347378457,1735746648530,-500.0,0.00019178,2]
[347378458,1735746648540,-500.0,0.00019178,2]
[347378459,1735746648550,-500.0,0.00019178,2]
[347378460,1735746648560,-500.0,0.00019178,2]
[347378461,1735746648570,-1956.36,0.00019178,2]
[347378462,1735746648580,-500.0,0.00019178,2]
[347378463,1735746648590,-500.0,0.00019178,2]
[347378464,1735746648599,-500.0,0.00019178,2]
[347378465,1735746648609,-501.12842338,0.00019178,2]
[347378466,1735746648619,-500.0,0.00019178,2]
[347378467,1735746648628,-500.0,0.00019178,2]
[347378468,1735746648637,-500.0,0.00019178,2]
[347378469,1735746648647,-500.0,0.00019178,2]
[347378470,1735746648656,-500.0,0.00019178,2]
[347378471,1735746648666,-501.27043798,0.00019178,2]
[347378472,1735746648676,-500.0,0.00019178,2]
[347378473,1735746648685,-307.13185755,0.00019178,2]
[347378474,1735746648695,-203.26466765,0.00019178,2]
[347378475,1735746648705,-500.0,0.00019178,2]
[347378476,1735746648715,-501.76689878,0.00019178,2]
[347378477,1735746648725,-1102.92,0.00019178,2]
[347378478,1735746648734,-500.0,0.00019178,2]
[347378479,1735746648744,-1072.3,0.00019178,2]
[347378480,1735746648753,-1223.71,0.00019178,2]
[347378481,1735746648762,-502.43420387,0.00019178,2]
[347378482,1735746648771,-500.0,0.00019178,2]
[347378483,1735746648781,-500.0,0.00019178,2]
[347378484,1735746648790,-1155.3,0.00019178,2]
[347378485,1735746648799,-500.0,0.00019178,2]
[347378486,1735746648809,-500.0,0.00019178,2]
[347378487,1735746648819,-500.0,0.00019178,2]
[347378488,1735746648828,-1590.48,0.00019178,2]
[347378489,1735746648838,-500.0,0.00019178,2]
[347378490,1735746648847,-500.0,0.00019178,2]
[347378491,1735746648857,-500.0,0.00019178,2]
[347378492,1735746648866,-500.0,0.00019178,2]
[347378493,1735746648876,-848.69,0.00019178,2]
[347378494,1735746648885,-500.0,0.00019178,2]
[347378495,1735746648895,-500.0,0.00019178,2]
[347378496,1735746648905,-500.0,0.00019178,2]
[347378497,1735746648914,-500.0,0.00019178,2]
[347378498,1735746648924,-501.63592278,0.00019178,2]
[347378499,1735746648933,-500.0,0.00019178,2]
[347378500,1735746648943,-2256.32,0.00019178,2]
[347378501,1735746648952,-217.32861084,0.00019178,2]
[347378502,1735746648963,-500.0,0.00019178,2]
[347378503,1735746648973,-1210.07,0.00019178,2]
[347378504,1735746648982,-500.0,0.00019178,2]
[347378505,1735746648992,-1129.54,0.00019178,2]
[347378506,1735746649002,-500.0,0.00019178,2]
[347378507,1735746649011,-500.0,0.00019178,2]
[347378508,1735746649021,-500.0,0.00019178,2]
[347378509,1735746649031,-500.0,0.00019178,2]
[347378510,1735746649040,-500.0,0.00019178,2]
[347378511,1735746649050,-500.0,0.00019178,2]
[347378512,1735746649059,-500.26888923,0.00019178,2]
[347378513,1735746649068,-1104.02,0.00019178,2]
[347378514,1735746649079,-500.0,0.00019178,2]
[347378515,1735746649090,-541.81494978,0.00019178,2]
[347378516,1735746649099,-500.0,0.00019178,2]
[347378517,1735746649110,-500.0,0.00019178,2]
[347378518,1735746649119,-1892.84,0.00019178,2]
[347378519,1735746649128,-500.0,0.00019178,2]
[347378520,1735746649137,-335.76653836,0.00019178,2]
[347378521,1735746649147,-618.01404919,0.00019178,2]
[347378522,1735746649157,-500.0,0.00019178,2]
[347378523,1735746649167,-500.0,0.00019178,2]
[347378524,1735746649176,-500.0,0.00019178,2]
[347378525,1735746649185,-500.0,0.00019178,2]
[347378526,1735746649195,-500.0,0.00019178,2]
[347378527,1735746649204,-500.0,0.00019178,2]
[347378528,1735746649213,-500.0,0.00019178,2]
[347378529,1735746649223,-501.96399624,0.00019178,2]
[347378530,1735746649232,-500.0,0.00019178,2]
[347378531,1735746649241,-1344.31,0.00019178,2]
[347378532,1735746649251,-547.01,0.00019178,2]
[347378533,1735746649260,-500.0,0.00019178,2]
[347378534,1735746649270,-500.0,0.00019178,2]
[347378535,1735746649280,-984.01,0.00019178,2]
[347378536,1735746649289,-500.0,0.00019178,2]
[347378537,1735746649300,-500.0,0.00019178,2]
[347378538,1735746649309,-613.99,0.00019178,2]
[347378539,1735746649319,-500.0,0.00019178,2]
[347378540,1735746649328,-500.0,0.00019178,2]
[347378541,1735746649337,-500.0,0.00019178,2]
[347378542,1735746649347,-500.0,0.00019178,2]
[347378543,1735746649356,-1040.05,0.00019178,2]
[347378544,1735746649365,-500.0,0.00019178,2]
[347378545,1735746649375,-365.07732351,0.00019178,2]
[347378546,1735746649384,-500.0,0.00019178,2]
[347378547,1735746649394,-1084.88,0.00019178,2]
[347378548,1735746649404,-500.0,0.00019178,2]
[347378549,1735746649413,-500.0,0.00019178,2]
[347378550,1735746649423,-678.2,0.00019178,2]
[347378551,1735746649432,-678.2,0.00019178,2]
[347378552,1735746649441,-678.2,0.00019178,2]
[347378553,1735746649451,-523.16115206,0.00019178,2]
[347378554,1735746649460,-678.2,0.00019178,2]
[347378555,1735746649470,-678.2,0.00019178,2]
[347378556,1735746649479,-502.60892895,0.00019178,2]
[347378557,1735746649488,-678.2,0.00019178,2]
[347378558,1735746649498,-678.2,0.00019178,2]
[347378559,1735746649507,-678.2,0.00019178,2]
[347378560,1735746649517,-678.2,0.00019178,2]
[347378561,1735746649527,-678.2,0.00019178,2]
[347378562,1735746649536,-678.2,0.00019178,2]
[347378563,1735746649546,-678.2,0.00019178,2]
[347378564,1735746649557,-500.0,0.00019178,2]
[347378565,1735746649567,-678.2,0.00019178,2]
[347378566,1735746649576,-678.2,0.00019178,2]
[347378567,1735746649586,-678.2,0.00019178,2]
[347378568,1735746649595,-500.0,0.00019178,2]
[347378569,1735746649605,-678.2,0.00019178,2]
[347378570,1735746649614,-678.2,0.00019178,2]
[347378571,1735746649623,-479.57711209,0.00019178,2]
[347378572,1735746649633,-678.2,0.00019178,2]
[347378573,1735746649643,-678.2,0.00019178,2]
[347378574,1735746649652,-678.2,0.00019178,2]
[347378575,1735746649661,-678.2,0.00019178,2]
[347378576,1735746649671,-678.2,0.00019178,2]
[347378577,1735746649681,-678.2,0.00019178,2]
[347378578,1735746649691,-678.36302227,0.00019178,2]
[347378579,1735746649701,-500.0,0.00019178,2]
[347378580,1735746649711,-770.94,0.00019178,2]
[347378581,1735746649722,-500.0,0.00019178,2]
[347378582,1735746649732,-700.77,0.00019178,2]
[347378583,1735746649742,-700.77,0.00019178,2]
[347378584,1735746649751,-700.77,0.00019178,2]
[347378585,1735746649761,-700.77,0.00019178,2]
[347378586,1735746649771,-700.77,0.00019178,2]
[347378587,1735746649780,-500.0,0.00019178,2]
[347378588,1735746649789,-700.77,0.00019178,2]
[347378589,1735746649799,-700.77,0.00019178,2]
[347378590,1735746649808,-700.77,0.00019178,2]
[347378591,1735746649817,-1353.9,0.00019178,2]
[347378592,1735746649827,-700.77,0.00019178,2]
[347378593,1735746649836,-700.77,0.00019178,2]
[347378594,1735746649846,-700.77,0.00019178,2]
[347378595,1735746649856,-700.77,0.00019178,2]
[347378596,1735746649866,-700.77,0.00019178,2]
[347378597,1735746649876,-700.77,0.00019178,2]
[347378598,1735746649885,-700.77,0.00019178,2]
[347378599,1735746649895,-500.0,0.00019178,2]
[347378600,1735746649904,-700.77,0.00019178,2]
[347378601,1735746649913,-700.77,0.00019178,2]
[347378602,1735746649923,-700.77,0.00019178,2]
[347378603,1735746649933,-700.77,0.00019178,2]
[347378604,1735746649942,-700.77,0.00019178,2]
[347378605,1735746649952,-700.77,0.00019178,2]
[347378606,1735746649962,-700.77,0.00019178,2]
[347378607,1735746649971,-506.75529478,0.00019178,2]
[347378608,1735746649981,-700.77,0.00019178,2]
[347378609,1735746649990,-500.0,0.00019178,2]
[347378610,1735746649999,-500.0,0.00019178,2]
[347378611,1735746650008,-701.00829625,0.00019178,2]
[347378612,1735746650018,-500.0,0.00019178,2]
[347378613,1735746650027,-500.0,0.00019178,2]
[347378614,1735746650036,-500.0,0.00019178,2]
[347378615,1735746650046,-1210.23,0.00019178,2]
[347378616,1735746650055,-500.0,0.00019178,2]
[347378617,1735746650064,-500.0,0.00019178,2]
[347378618,1735746650075,-500.0,0.00019178,2]
[347378619,1735746650087,-506.59462191,0.00019178,2]
[347378620,1735746650097,-500.0,0.00019178,2]
[347378621,1735746650106,-500.0,0.00019178,2]
[347378622,1735746650116,-500.0,0.00019178,2]
[347378623,1735746650126,-500.0,0.00019178,2]
[347378624,1735746650136,-500.0,0.00019178,2]
[347378625,1735746650146,-500.0,0.00019178,2]
[347378626,1735746650155,-500.0,0.00019178,2]
[347378627,1735746650165,-3651.28,0.00019178,2]
[347378628,1735746650176,-500.0,0.00019178,2]
[347378629,1735746650185,-500.0,0.00019178,2]
[347378630,1735746650195,-500.0,0.00019178,2]
[347378631,1735746650205,-500.0,0.00019178,2]
[347378632,1735746650214,-500.0,0.00019178,2]
[347378633,1735746650223,-536.08,0.00019178,2]
[347378634,1735746650233,-500.72643595,0.00019178,2]
[347378635,1735746650242,-500.0,0.00019178,2]
[347378636,1735746650358,-216.08115242,0.00019178,2]
[347378637,1735746650368,-500.0,0.00019178,2]
[347378638,1735746650378,-329.12269987,0.00019178,2]
[347378639,1735746650388,-500.0,0.00019178,2]
[347378640,1735746650398,-957.67,0.00019178,2]
[347378641,1735746650407,-509.72166188,0.00019178,2]
[347378642,1735746650416,-500.0,0.00019178,2]
[347378643,1735746650427,-500.0,0.00019178,2]
[347378644,1735746650438,-500.0,0.00019178,2]
[347378645,1735746650447,-1334.32,0.00019178,2]
[347378646,1735746650455,-6890.07,0.00019178,2]
[347378647,1735746650464,-574.66,0.00019178,2]
[347378648,1735746650473,-500.0,0.00019178,2]
[347378649,1735746650482,-500.0,0.00019178,2]
[347378650,1735746650491,-1000.0,0.00019178,2]
[347378651,1735746650500,-500.0,0.00019178,2]
[347378652,1735746650509,-500.0,0.00019178,2]
[347378653,1735746650519,-901.33,0.00019178,2]
[347378654,1735746650528,-1599.93,0.00019178,2]
[347378655,1735746650537,-669.04,0.00019178,2]
[347378656,1735746650546,-500.0,0.00019178,2]
[347378657,1735746650557,-554.90507457,0.00019178,2]
[347378658,1735746650576,-500.0,0.00019178,2]
[347378659,1735746650596,-500.0,0.00019178,2]
[347378660,1735746650617,-500.0,0.00019178,2]
[347378661,1735746650639,-523.68,0.00019178,2]
[347378662,1735746650660,-500.0,0.00019178,2]
[347378663,1735746650682,-633.62733997,0.00019178,2]
[347378664,1735746650702,-500.31718916,0.00019178,2]
[347378665,1735746650723,-500.0,0.00019178,2]
[347378666,1735746650744,-503.44058238,0.00019178,2]
[347378667,1735746650765,-500.0,0.00019178,2]
[347378668,1735746650785,-500.0,0.00019178,2]
[347378669,1735746650806,-500.42538076,0.00019178,2]
[347378670,1735746650826,-500.0,0.00019178,2]
[347378671,1735746650848,-500.43488682,0.00019178,2]
[347378672,1735746650869,-500.0,0.00019178,2]
[347378673,1735746650892,-501.09406938,0.00019178,2]
[347378674,1735746650914,-500.0,0.00019178,2]
[347378675,1735746650936,-453.465491,0.00019178,2]
[347378676,1735746650945,-500.0,0.00019178,2]
[347378677,1735746650955,-500.0,0.00019178,2]
[347378678,1735746650966,-500.0,0.00019178,2]
[347378679,1735746650976,-500.0,0.00019178,2]
[347378680,1735746650985,-500.0,0.00019178,2]
[347378681,1735746650995,-500.0,0.00019178,2]
[347378682,1735746651005,-500.0,0.00019178,2]
[347378683,1735746651015,-49607.01,0.00019178,2]
[347378684,1735746651024,-649.5,0.00019178,2]
[347378685,1735746651034,-500.0,0.00019178,2]
[347378686,1735746651044,-500.0,0.00019178,2]
[347378687,1735746651054,-500.0,0.00019178,2]
[347378688,1735746651063,-2047.95,0.00019178,2]
[347378689,1735746651074,-200.0,0.00019178,2]
[347378690,1735746651087,-500.0,0.00019178,2]
[347378691,1735746651096,-490.28169312,0.00019178,2]
[347378692,1735746651106,-500.0,0.00019178,2]
[347378693,1735746651117,-500.0,0.00019178,2]
[347378694,1735746651126,-561.58,0.00019178,2]
[347378695,1735746651136,-500.0,0.00019178,2]
[347378696,1735746651145,-500.0,0.00019178,2]
[347378697,1735746651156,-502.31985349,0.00019178,2]
[347378698,1735746651166,-500.0,0.00019178,2]
[347378699,1735746651176,-1323.3,0.00019178,2]
[347378700,1735746651185,-500.0,0.00019178,2]
[347378701,1735746651195,-500.0,0.00019178,2]
[347378702,1735746651204,-500.0,0.00019178,2]
[347378703,1735746651213,-500.0,0.00019178,2]
[347378704,1735746651223,-500.0,0.00019178,2]
[347378705,1735746651232,-524.30135863,0.00019178,2]
[347378706,1735746651241,-500.0,0.00019178,2]
[347378707,1735746651250,-2756.0,0.00019178,2]
[347378708,1735746651260,-740.52,0.00019178,2]
[347378709,1735746651270,-500.0,0.00019178,2]
[347378710,1735746651279,-500.0,0.00019178,2]
[347378711,1735746651288,-500.0,0.00019178,2]
[347378712,1735746651298,-500.0,0.00019178,2]
[347378713,1735746651307,-500.53254651,0.00019178,2]
[347378714,1735746651318,-500.0,0.00019178,2]
[347378715,1735746651328,-500.0,0.00019178,2]
[347378716,1735746651338,-500.0,0.00019178,2]
[347378717,1735746651347,-500.0,0.00019178,2]
[347378718,1735746651356,-612.96,0.00019178,2]
[347378719,1735746651366,-500.34341596,0.00019178,2]
[347378720,1735746651375,-500.0,0.00019178,2]
[347378721,1735746651385,-1695.55,0.00019178,2]
[347378722,1735746651395,-500.0,0.00019178,2]
[347378723,1735746651405,-500.0,0.00019178,2]
[347378724,1735746651414,-500.0,0.00019178,2]
[347378725,1735746651425,-500.0,0.00019178,2]
[347378726,1735746651436,-500.0,0.00019178,2]
[347378727,1735746651445,-500.0,0.00019178,2]
[347378728,1735746651455,-500.57523473,0.00019178,2]
[347378729,1735746651464,-405.71624738,0.00019178,2]
[347378730,1735746651473,-500.0,0.00019178,2]
[347378731,1735746651482,-500.0,0.00019178,2]
[347378732,1735746651492,-500.66677963,0.00019178,2]
[347378733,1735746651501,-500.0,0.00019178,2]
[347378734,1735746651511,-500.0,0.00019178,2]
[347378735,1735746651522,-500.0,0.00019178,2]
[347378736,1735746651533,-2598.5,0.00019178,2]
[347378737,1735746651542,-500.0,0.00019178,2]
[347378738,1735746651553,-500.0,0.00019178,2]
[347378739,1735746651562,-500.0,0.00019178,2]
[347378740,1735746651571,-500.0,0.00019178,2]
[347378741,1735746651581,-500.0,0.00019178,2]
[347378742,1735746651590,-500.0,0.00019178,2]
[347378743,1735746651600,-500.0,0.00019178,2]
[347378744,1735746651609,-500.0,0.00019178,2]
[347378745,1735746651619,-500.0,0.00019178,2]
[347378746,1735746651629,-501.24527207,0.00019178,2]
[347378747,1735746651638,-500.0,0.00019178,2]
[347378748,1735746651647,-500.0,0.00019178,2]
[347378749,1735746651657,-500.0,0.00019178,2]
[347378750,1735746651666,-500.0,0.00019178,2]
[347378751,1735746651677,-500.0,0.00019178,2]
[347378752,1735746651686,-500.0,0.00019178,2]
[347378753,1735746651695,-500.0,0.00019178,2]
[347378754,1735746651704,-500.0,0.00019178,2]
[347378755,1735746651714,-500.0,0.00019178,2]
[347378756,1735746651723,-500.0,0.00019178,2]
[347378757,1735746651733,-500.0,0.00019178,2]
[347378758,1735746651743,-500.0,0.00019178,2]
[347378759,1735746651751,-500.0,0.00019178,2]
[347378760,1735746651761,-500.0,0.00019178,2]
[347378761,1735746651771,-500.0,0.00019178,2]
[347378762,1735746651780,-500.0,0.00019178,2]
[347378763,1735746651789,-720.56,0.00019178,2]
[347378764,1735746651799,-500.0,0.00019178,2]
[347378765,1735746651809,-500.0,0.00019178,2]
[347378766,1735746651819,-500.0,0.00019178,2]
[347378767,1735746651828,-500.0,0.00019178,2]
[347378768,1735746651837,-500.0,0.00019178,2]
[347378769,1735746651847,-500.0,0.00019178,2]
[347378770,1735746651856,-500.0,0.00019178,2]
[347378771,1735746651866,-511.31651151,0.00019178,2]
[347378772,1735746651875,-500.0,0.00019178,2]
[347378773,1735746651884,-223.2276969,0.00019178,2]
[347378774,1735746651894,-500.0,0.00019178,2]
[347378775,1735746651903,-500.0,0.00019178,2]
[347378776,1735746651913,-858.75,0.00019178,2]
[347378777,1735746651922,-500.0,0.00019178,2]
[347378778,1735746651931,-500.0,0.00019178,2]
[347378779,1735746651941,-225.13,0.00019178,2]
[347378780,1735746651951,-500.0,0.00019178,2]
[347378781,1735746651960,-188.0,0.00019178,2]
[347378782,1735746651970,-500.0,0.00019178,2]
[347378783,1735746651979,-500.0,0.00019178,2]
[347378784,1735746651989,-500.0,0.00019178,2]
[347378785,1735746651998,-500.0,0.00019178,2]
[347378786,1735746652008,-2188.85,0.00019178,2]
[347378787,1735746652018,-150.26331925,0.00019178,2]
[347378788,1735746652027,-500.0,0.00019178,2]
[347378789,1735746652037,-950.24,0.00019178,2]
[347378790,1735746652046,-500.0,0.00019178,2]
[347378791,1735746652056,-501.22600146,0.00019178,2]
[347378792,1735746652065,-500.47430255,0.00019178,2]
[347378793,1735746652076,-230.10487236,0.00019178,2]
[347378794,1735746652089,-385.27445608,0.00019178,2]
[347378795,1735746652098,-501.3610078,0.00019178,2]
[347378796,1735746652108,-501.05291563,0.00019178,2]
[347378797,1735746652117,-500.0,0.00019178,2]
[347378798,1735746652127,-500.0,0.00019178,2]
[347378799,1735746652137,-500.0,0.00019178,2]
[347378800,1735746652146,-500.0,0.00019178,2]
[347378801,1735746652156,-5856.32,0.00019178,2]
[347378802,1735746652166,-500.0,0.00019178,2]
[347378803,1735746652175,-500.0,0.00019178,2]
[347378804,1735746652185,-500.0,0.00019178,2]
[347378805,1735746652194,-500.0,0.00019178,2]
[347378806,1735746652204,-500.0,0.00019178,2]
[347378807,1735746652213,-500.0,0.00019178,2]
[347378808,1735746652223,-500.0,0.00019178,2]
[347378809,1735746652232,-605.97824998,0.00019178,2]
[347378810,1735746652241,-500.0,0.00019178,2]
[347378811,1735746652251,-500.0,0.00019178,2]
[347378812,1735746652261,-500.0,0.00019178,2]
[347378813,1735746652270,-500.0,0.00019178,2]
[347378814,1735746652280,-500.0,0.00019178,2]
[347378815,1735746652289,-500.0,0.00019178,2]
[347378816,1735746652298,-500.0,0.00019178,2]
[347378817,1735746652307,-500.0,0.00019178,2]
[347378818,1735746652317,-218.22929547,0.00019178,2]
[347378819,1735746652326,-500.0,0.00019178,2]
[347378820,1735746652335,-500.0,0.00019178,2]
[347378821,1735746652345,-500.29108879,0.00019178,2]
[347378822,1735746652355,-500.0,0.00019178,2]
[347378823,1735746652364,-500.0,0.00019178,2]
[347378824,1735746652373,-500.0,0.00019178,2]
[347378825,1735746652383,-500.0,0.00019178,2]
[347378826,1735746652392,-4359.25,0.00019178,2]
[347378827,1735746652401,-500.0,0.00019178,2]
[347378828,1735746652411,-500.0,0.00019178,2]
[347378829,1735746652421,-4186.41,0.00019178,2]
[347378830,1735746652430,-500.0,0.00019178,2]
[347378831,1735746652440,-500.0,0.00019178,2]
[347378832,1735746652449,-500.0,0.00019178,2]
[347378833,1735746652459,-500.0,0.00019178,2]
[347378834,1735746652468,-500.0,0.00019178,2]
[347378835,1735746652478,-500.0,0.00019178,2]
[347378836,1735746652487,-4010.69,0.00019178,2]
[347378837,1735746652496,-500.0,0.00019178,2]
[347378838,1735746652506,-500.0,0.00019178,2]
[347378839,1735746652515,-500.0,0.00019178,2]
[347378840,1735746652525,-500.0,0.00019178,2]
[347378841,1735746652534,-500.0,0.00019178,2]
[347378842,1735746652543,-500.0,0.00019178,2]
[347378843,1735746652553,-659.48,0.00019178,2]
[347378844,1735746652562,-310.11321563,0.00019178,2]
[347378845,1735746652571,-501.58081233,0.00019178,2]
[347378846,1735746652581,-500.0,0.00019178,2]
[347378847,1735746652590,-500.0,0.00019178,2]
[347378848,1735746652600,-569.98,0.00019178,2]
[347378849,1735746652609,-500.0,0.00019178,2]
[347378850,1735746652619,-500.0,0.00019178,2]
[347378851,1735746652734,-500.0,0.00019178,2]
[347378852,1735746652744,-500.0,0.00019178,2]
[347378853,1735746652753,-500.0,0.00019178,2]
[347378854,1735746652762,-500.0,0.00019178,2]
[347378855,1735746652772,-500.0,0.00019178,2]
[347378856,1735746652781,-500.0,0.00019178,2]
[347378857,1735746652791,-500.0,0.00019178,2]
[347378858,1735746652800,-2393.89,0.00019178,2]
[347378859,1735746652809,-500.0,0.00019178,2]
[347378860,1735746652819,-500.0,0.00019178,2]
[347378861,1735746652828,-500.0,0.00019178,2]
[347378862,1735746652838,-500.603749,0.00019178,2]
[347378863,1735746652847,-155.52451998,0.00019178,2]
[347378864,1735746652857,-4865.67,0.00019178,2]
[347378865,1735746652866,-501.1672604,0.00019178,2]
[347378866,1735746652875,-500.0,0.00019178,2]
[347378867,1735746652885,-500.0,0.00019178,2]
[347378868,1735746652894,-500.0,0.00019178,2]
[347378869,1735746652903,-500.0,0.00019178,2]
[347378870,1735746652913,-172.563262,0.00019178,2]
[347378871,1735746652923,-1033.1667515,0.00019178,11]
[347378872,1735746652933,-8279.67,0.000192,2]
[347378873,1735746652943,-1766.96,0.000192,2]
[347378874,1735746652952,-4185.47,0.000192,2]
[347378875,1735746652961,-7887.63387895,0.00019321,2]
[347378876,1735746652971,-150.4,0.0001933,4]
[347378877,1735746652980,-372.77202879,0.00019397,2]
[347378878,1735746652990,-1200.0,0.00019427,2]
[347378879,1735746652999,-151.0,0.00019452,2]
[347378880,1735746653008,-168.405005,0.00019452,2]
[347378881,1735746653017,-168.405005,0.00019452,2]
[347378882,1735746653027,-168.405005,0.00019452,2]
[347378883,1735746653036,-151.0,0.00019452,2]
[347378884,1735746653045,-151.0,0.00019452,2]
[347378885,1735746653054,-151.0,0.00019452,2]
[347378886,1735746653063,-151.0,0.00019452,2]
[347378887,1735746653072,-151.0,0.00019452,2]
[347378888,1735746653083,-151.0,0.00019452,2]
[347378889,1735746653092,-302.450178,0.00019452,2]
[347378890,1735746653102,-302.450178,0.00019452,2]
[347378891,1735746653111,-302.450178,0.00019452,2]
[347378892,1735746653120,-302.450178,0.00019452,2]
[347378893,1735746653130,-527.03697551,0.00019452,3]
[347378894,1735746653139,-151.0,0.00019452,2]
[347378895,1735746653148,-151.0,0.00019452,2]
[347378896,1735746653158,-186.347087,0.00019452,2]
[347378897,1735746653168,-186.347087,0.00019452,2]
[347378898,1735746653178,-186.347087,0.00019452,2]
[347378899,1735746653187,-186.347087,0.00019452,2]
[347378900,1735746653197,-151.0,0.00019452,2]
[347378901,1735746653206,-151.0,0.00019452,2]
[347378902,1735746653215,-950.428526,0.00019452,2]
[347378903,1735746653225,-950.428526,0.00019452,2]
[347378904,1735746653234,-950.428526,0.00019452,2]
[347378905,1735746653244,-950.428526,0.00019452,2]
[347378906,1735746653254,-500.0,0.00019452,3]
[347378907,1735746653263,-710.35,0.00019452,2]
[347378908,1735746653272,-500.0,0.00019452,3]
[347378909,1735746653282,-500.0,0.00019452,3]
[347378910,1735746653291,-151.0,0.00019452,2]
[347378911,1735746653301,-151.0,0.00019452,2]
[347378912,1735746653310,-10711.19,0.00019452,3]
[347378913,1735746653320,-501.70894114,0.00019452,3]
[347378914,1735746653329,-500.0,0.00019452,3]
[347378915,1735746653339,-501.58259512,0.00019452,3]
[347378916,1735746653348,-500.0,0.00019452,3]
[347378917,1735746653357,-500.0,0.00019452,3]
[347378918,1735746653366,-500.0,0.00019452,3]
[347378919,1735746653376,-498.63295011,0.00019452,3]
[347378920,1735746653385,-500.0,0.00019452,3]
[347378921,1735746653394,-151.0,0.00019452,2]
[347378922,1735746653404,-151.0,0.00019452,2]
[347378923,1735746653413,-501.54291302,0.00019452,3]
[347378924,1735746653424,-151.0,0.00019452,2]
[347378925,1735746653433,-169.772713,0.00019452,2]
[347378926,1735746653442,-500.0,0.00019452,3]
[347378927,1735746653452,-500.0,0.00019452,3]
[347378928,1735746653462,-502.39856109,0.00019452,3]
[347378929,1735746653471,-500.0,0.00019452,3]
[347378930,1735746653480,-151.0,0.00019452,2]
[347378931,1735746653489,-209.715278,0.00019452,2]
[347378932,1735746653498,-590.46434558,0.00019452,3]
[347378933,1735746653508,-500.0,0.00019452,3]
[347378934,1735746653517,-500.0,0.00019452,3]
[347378935,1735746653527,-500.0,0.00019452,3]
[347378936,1735746653537,-427.98235156,0.00019452,3]
[347378937,1735746653546,-500.0,0.00019452,3]
[347378938,1735746653555,-500.0,0.00019452,3]
[347378939,1735746653565,-500.0,0.00019452,3]
[347378940,1735746653575,-500.0,0.00019452,3]
[347378941,1735746653584,-500.0,0.00019452,3]
[347378942,1735746653594,-500.0,0.00019452,3]
[347378943,1735746653603,-324.16847618,0.00019452,3]
[347378944,1735746653612,-500.0,0.00019452,3]
[347378945,1735746653622,-500.0,0.00019452,3]
[347378946,1735746653631,-500.0,0.00019452,3]
[347378947,1735746653640,-500.0,0.00019452,3]
[347378948,1735746653650,-500.0,0.00019452,3]
[347378949,1735746653660,-418.39678663,0.00019452,3]
[347378950,1735746653669,-1000.0,0.00019452,3]
[347378951,1735746653678,-151.0,0.00019452,2]
[347378952,1735746653688,-500.0,0.00019452,3]